bitfinex-derivatives/quotes_ETHF0:USTF0_20250909
["timestamp","ask_amount","ask_price","bid_price","bid_amount"]
[1757433674954,0.6981,4290.9,4290.8,3.7652]
[1757433675149,0.2964,4290.9,4290.8,3.8647]
[1757433676143,0.6981,4290.9,4290.8,3.7642]
[1757433677456,0.4997,4290.9,4290.8,3.7642]
[1757433678158,0.2964,4290.9,4290.8,3.8576]
[1757433681155,0.1316,4291.5,4290.9,0.0934]
[1757433681362,0.6953,4291.2,4290.8,3.2078]
[1757433681657,0.6953,4291.2,4291.0,0.238]
[1757433683864,0.6953,4291.2,4291.1,0.2988]
[1757433684661,0.6953,4291.2,4291.1,0.1494]
[1757433684864,0.1223,4291.0,4290.8,3.2078]
[1757433685063,0.6234,4291.0,4290.9,0.5368]
[1757433686460,0.2946,4291.4,4291.3,0.2988]
[1757433686765,0.5011,4291.4,4291.3,0.5368]
[1757433687662,0.6953,4291.4,4291.3,0.2988]
[1757433687865,0.6953,4291.4,4291.3,0.5368]
[1757433688065,0.4007,4291.4,4290.9,1.67622906]
[1757433688265,0.4169,4291.0,4290.9,1.97502906]
[1757433688464,0.6234,4291.0,4290.9,2.21302906]
[1757433688667,0.8176,4291.0,4290.9,0.2988]
[1757433688966,0.8176,4291.0,4290.9,0.238]
[1757433689161,0.8176,4291.0,4290.9,0.5368]
[1757433689363,0.2946,4291.0,4290.9,0.6302]
[1757433689561,0.4169,4291.0,4290.9,0.6302]
[1757433689961,0.6234,4291.0,4290.9,0.6302]
[1757433690164,0.6234,4291.0,4290.9,0.5368]
[1757433690564,0.1316,4291.5,4291.4,0.2988]
[1757433690764,0.4262,4291.5,4291.4,3.838]
[1757433691361,0.6327,4291.5,4291.4,3.7446]
[1757433691967,0.4225,4292.0,4291.9,0.2988]
[1757433692261,0.4225,4292.0,4291.9,0.5368]
[1757433692460,0.629,4292.0,4291.9,0.5368]
[1757433692666,0.8232,4292.0,4291.9,0.5368]
[1757433692972,0.8232,4292.0,4291.9,0.238]
[1757433693363,0.8176,4291.5,4291.4,3.2078]
[1757433693564,0.3165,4291.5,4291.4,0.238]
[1757433693764,0.523,4291.5,4291.4,0.238]
[1757433694265,0.523,4291.5,4291.0,1.67576139]
[1757433694465,0.8176,4291.0,4290.9,3.2078]
[1757433694665,0.8176,4291.0,4290.9,3.5952]
[1757433695671,0.8176,4291.0,4290.9,3.4458]
[1757433696367,0.8176,4291.0,4290.3,1.67576139]
[1757433696566,0.6953,4290.3,4290.2,3.2078]
[1757433696768,0.6953,4290.3,4290.2,3.4458]
[1757433696969,0.6953,4290.3,4290.2,3.7446]
[1757433697378,0.6953,4290.3,4290.2,3.5952]
[1757433698677,0.6953,4290.3,4290.2,0.238]
[1757433699868,0.1223,4290.5,4289.2,1.67576139]
[1757433699869,0.1223,4290.0,4289.2,1.67576139]
[1757433700075,0.6953,4289.3,4289.2,0.2988]
[1757433700276,0.6953,4289.3,4289.2,0.3874]
[1757433700477,0.6953,4289.3,4289.2,0.5368]
[1757433701277,0.6953,4289.3,4289.2,0.2988]
[1757433701477,0.6953,4289.3,4289.2,0.5368]
[1757433701780,0.5011,4289.3,4289.2,0.5368]
[1757433701982,0.6953,4289.3,4289.2,0.5368]
[1757433702179,0.6953,4289.3,4289.2,0.3874]
[1757433702477,0.6953,4289.3,4289.2,0.5368]
[1757433703576,0.2946,4289.3,4289.2,0.6302]
[1757433703774,0.5011,4289.9,4289.8,0.2988]
[1757433703969,0.6953,4289.9,4289.8,0.5368]
[1757433704576,0.6953,4289.9,4289.8,0.3874]
[1757433704778,0.6953,4289.9,4289.8,0.238]
[1757433705175,0.2946,4289.8,4289.6,3.4458]
[1757433705374,0.6953,4289.7,4289.6,3.2078]
[1757433708274,0.6953,4289.7,4289.5,0.238]
[1757433708477,0.6953,4289.7,4289.6,0.1505]
[1757433708890,0.5011,4289.7,4289.6,0.301]
[1757433709080,0.2946,4289.7,4289.6,3.6026]
[1757433709273,0.4146,4290.0,4289.9,0.3948]
[1757433709581,0.6107,4290.0,4289.9,0.539]
[1757433710503,0.2923,4290.9,4290.5,0.0938]
[1757433710679,0.2923,4290.9,4290.8,0.301]
[1757433710975,0.7003,4290.9,4290.8,0.3885]
[1757433711176,0.7003,4290.9,4290.8,0.238]
[1757433711383,0.3175,4290.5,4290.4,0.301]
[1757433711576,0.1223,4291.0,4290.4,0.6328]
[1757433711977,0.1223,4291.0,4290.4,0.539]
[1757433712176,0.2923,4290.9,4290.8,0.3948]
[1757433712372,0.2923,4290.9,4290.8,3.8406]
[1757433712672,0.2923,4291.4,4290.8,3.8406]
[1757433712876,3.3301,4291.5,4290.9,0.539]
[1757433712877,0.3175,4291.0,4290.9,0.539]
[1757433713077,0.6098,4291.0,4290.9,0.539]
[1757433713273,0.4137,4291.0,4290.9,0.539]
[1757433713477,0.4137,4291.0,4290.9,0.6328]
[1757433714079,0.6098,4291.0,4290.9,0.539]
[1757433714286,0.4137,4291.0,4290.9,0.6324]
[1757433715085,0.8217,4291.0,4290.9,0.539]
[1757433715284,0.6098,4291.0,4290.9,0.539]
[1757433715978,0.6098,4291.0,4290.9,0.301]
[1757433716174,0.8217,4291.0,4290.9,0.539]
[1757433716583,0.6098,4291.0,4290.9,0.539]
[1757433717175,0.8217,4291.0,4290.9,0.539]
[1757433717386,0.4137,4291.0,4290.9,0.6324]
[1757433717687,0.2923,4291.0,4290.9,0.6324]
[1757433718388,0.4137,4291.0,4290.9,0.6324]
[1757433719388,0.4884,4291.4,4291.3,0.299]
[1757433719582,0.4884,4291.4,4291.3,0.537]
[1757433719782,0.7003,4291.4,4291.3,0.299]
[1757433719984,0.7003,4291.4,4291.3,0.3875]
[1757433720184,0.7003,4291.4,4291.3,0.238]
[1757433720577,0.1223,4291.5,4290.8,3.3573]
[1757433720578,0.7003,4290.9,4290.8,3.3573]
[1757433720779,0.7003,4290.9,4290.8,3.4458]
[1757433720983,0.7003,4290.9,4290.8,3.5953]
[1757433721182,0.4884,4290.9,4290.8,3.7448]
[1757433721483,0.7003,4290.9,4290.8,3.7448]
[1757433721688,0.7003,4290.9,4290.8,3.5953]
[1757433721888,0.7003,4290.9,4290.8,3.2078]
[1757433722087,0.7003,4290.9,4290.8,3.4458]
[1757433722288,0.7003,4290.9,4290.8,3.7448]
[1757433724082,0.2923,4291.4,4290.8,3.8382]
[1757433724282,0.2923,4291.4,4291.3,0.299]
[1757433724481,0.2923,4291.4,4291.3,3.7448]
[1757433724883,0.7003,4291.4,4291.3,3.7448]
[1757433725081,0.4884,4291.4,4291.3,3.7448]
[1757433725989,0.7003,4291.4,4291.3,3.5953]
[1757433726188,0.4884,4291.4,4291.3,3.7448]
[1757433726393,0.7003,4291.4,4291.3,3.7448]
[1757433726684,0.7003,4291.4,4291.3,3.4458]
[1757433726886,0.7003,4291.4,4290.7,3.2078]
[1757433727095,0.1223,4291.5,4288.7,4.19057266]
[1757433727096,0.6098,4291.0,4290.9,0.299]
[1757433727392,0.6098,4291.0,4290.9,0.537]
[1757433727583,0.2923,4291.4,4291.0,0.0934]
[1757433727784,0.1223,4291.5,4291.4,0.3924]
[1757433728090,0.3184,4291.5,4291.4,0.537]
[1757433728284,0.6107,4291.5,4291.4,0.537]
[1757433729291,0.8226,4291.5,4291.4,0.537]
[1757433729593,0.6107,4291.5,4291.4,0.537]
[1757433730394,0.4137,4292.0,4291.9,0.3924]
[1757433730594,0.4137,4292.0,4291.9,0.6304]
[1757433730794,0.6098,4292.0,4291.9,0.537]
[1757433732090,0.2923,4291.9,4291.2,3.3012]
[1757433732393,0.4137,4292.0,4291.9,0.3924]
[1757433732585,0.2923,4292.0,4291.9,0.6304]
[1757433733292,0.4137,4292.0,4291.9,0.6304]
[1757433733690,0.8217,4292.0,4291.9,0.537]
[1757433735188,0.8217,4292.0,4291.9,0.299]
[1757433735391,0.8217,4292.0,4291.9,0.537]
[1757433735598,0.2923,4291.9,4291.8,3.2078]
[1757433735895,0.7003,4291.9,4291.8,3.4458]
[1757433736593,0.7003,4291.9,4291.8,0.238]
[1757433736790,0.7172,4291.4,4291.3,3.2078]
[1757433736990,0.7172,4291.4,4291.3,3.4458]
[1757433737690,0.7172,4291.4,4291.3,3.5949]
[1757433738090,0.7172,4291.4,4291.3,3.744]
[1757433738993,0.2954,4291.4,4291.3,3.838]
[1757433739189,0.1214,4292.0,4291.4,0.094]
[1757433739190,0.2954,4291.7,4291.4,0.094]
[1757433739396,0.1214,4292.0,4291.7,0.094]
[1757433739586,0.1214,4292.0,4291.9,0.3922]
[1757433739790,0.3316,4292.0,4291.9,0.2982]
[1757433739991,0.8386,4292.0,4291.9,0.2982]
[1757433740492,0.8386,4292.0,4291.8,0.238]
[1757433740693,0.8386,4292.0,4291.9,0.1491]
[1757433740886,0.8386,4292.0,4291.9,0.2982]
[1757433741901,0.8386,4292.0,4291.9,0.5362]
[1757433742195,0.5432,4292.0,4291.3,3.2078]
[1757433742495,0.539,4291.5,4291.4,0.3871]
[1757433742696,0.3274,4291.5,4291.4,0.5362]
[1757433742899,0.4126,4291.5,4291.4,0.6302]
[1757433743612,0.1214,4292.0,4291.4,0.5362]
[1757433743900,0.2954,4291.9,4291.4,0.6302]
[1757433744196,0.5056,4291.9,4291.8,0.2982]
[1757433744400,0.5056,4291.9,4291.8,3.744]
[1757433744592,0.2954,4291.9,4291.8,3.744]
[1757433744792,0.2954,4291.9,4291.8,3.838]
[1757433745691,0.5056,4291.9,4291.8,3.744]
[1757433746193,0.7172,4291.9,4291.8,3.744]
[1757433747605,0.7172,4291.9,4291.8,3.5949]
[1757433747798,0.7172,4291.9,4291.8,3.744]
[1757433748696,0.7172,4291.4,4291.3,1.82486139]
[1757433748896,0.7172,4291.4,4291.3,0.3871]
[1757433749102,0.7172,4291.4,4291.3,0.5362]
[1757433750501,0.7172,4291.4,4291.3,0.3871]
[1757433750699,0.7172,4291.4,4291.2,4.88356139]
[1757433751000,0.1172,4291.5,4291.2,3.2078]
[1757433751001,0.7172,4291.3,4291.2,3.2078]
[1757433751205,0.7172,4291.3,4291.2,3.4458]
[1757433752203,0.7172,4291.3,4291.2,3.5949]
[1757433752403,0.7172,4291.3,4291.2,3.744]
[1757433754299,0.1172,4291.5,4291.2,3.838]
[1757433754505,0.2954,4291.9,4291.8,0.3922]
[1757433754709,0.2954,4291.9,4291.8,3.838]
[1757433756208,0.1214,4292.0,4291.8,3.838]
[1757433756513,3.2078,4292.8,4291.9,0.2982]
[1757433756813,0.5432,4292.5,4292.4,0.1491]
[1757433757016,0.5432,4292.5,4292.4,0.3871]
[1757433757199,0.8386,4292.5,4292.4,0.5362]
[1757433757508,0.4168,4292.5,4292.4,0.6302]
[1757433758008,0.8386,4292.5,4292.4,0.5362]
[1757433758908,0.7172,4291.9,4291.6,3.2078]
[1757433759104,0.7172,4291.8,4291.7,0.238]
[1757433759305,0.7172,4291.8,4291.7,0.3871]
[1757433759614,0.7172,4291.8,4291.7,0.238]
[1757433760610,0.2954,4291.7,4291.6,3.2078]
[1757433760809,0.7172,4291.7,4291.6,3.4458]
[1757433761805,0.7172,4291.7,4291.6,3.5949]
[1757433762112,0.5056,4291.7,4291.6,3.744]
[1757433762314,0.5056,4291.7,4291.6,3.838]
[1757433762623,0.2954,4291.7,4291.6,3.838]
[1757433763213,0.5056,4291.7,4291.6,3.744]
[1757433764311,0.2954,4291.7,4291.6,3.744]
[1757433764710,0.1172,4292.0,4291.6,3.838]
[1757433764905,0.1172,4292.0,4291.8,0.2982]
[1757433765114,0.3274,4292.0,4291.9,0.5362]
[1757433765518,0.1214,4292.5,4291.9,0.6302]
[1757433765814,0.36827305,4292.4,4292.3,0.2982]
[1757433766015,0.36827305,4292.4,4292.3,0.6302]
[1757433766206,0.15807305,4292.4,4292.3,0.6302]
[1757433766407,0.45347305,4292.4,4292.3,0.6302]
[1757433766914,0.5056,4292.4,4292.3,0.5362]
[1757433767813,0.7032,4292.4,4292.3,0.238]
[1757433768918,0.7032,4292.4,4292.3,0.3885]
[1757433769812,0.4078,4292.4,4292.3,0.238]
[1757433770315,0.7109,4292.4,4292.3,0.3885]
[1757433772225,0.7109,4292.4,4292.3,0.238]
[1757433773625,0.703,4291.7,4291.6,3.2078]
[1757433773823,0.703,4291.7,4291.6,3.4458]
[1757433774019,0.5054,4291.7,4291.6,3.744]
[1757433774220,0.3031,4291.9,4291.6,3.744]
[1757433774524,0.5233,4292.0,4291.9,0.2982]
[1757433774915,0.8264,4292.0,4291.9,0.2982]
[1757433775127,0.8264,4292.0,4291.9,0.1491]
[1757433775318,0.5233,4292.0,4291.9,0.238]
[1757433775518,0.8264,4292.0,4291.9,0.238]
[1757433776526,0.3999,4291.8,4291.7,0.238]
[1757433776821,0.703,4291.8,4291.7,0.238]
[1757433779628,0.3031,4291.7,4291.6,3.4458]
[1757433779929,0.703,4291.7,4291.6,3.744]
[1757433781422,0.5054,4291.7,4291.6,3.744]
[1757433781727,0.3031,4291.7,4291.6,3.8372]
[1757433785048,0.703,4291.7,4291.6,3.5949]
[1757433785620,0.703,4291.7,4291.6,3.744]
[1757433788031,0.703,4291.7,4291.6,3.5949]
[1757433788528,0.703,4291.7,4291.6,3.744]
[1757433789329,0.1234,4292.0,4291.9,0.2982]
[1757433789534,0.4265,4292.0,4291.9,0.5362]
[1757433790933,0.3031,4292.4,4291.9,0.6294]
[1757433791133,0.3031,4292.2,4292.1,0.2982]
[1757433791333,0.45370665,4292.2,4292.1,0.6294]
[1757433792126,0.3031,4292.6,4292.5,0.2982]
[1757433792329,0.3031,4292.6,4292.5,0.5362]
[1757433792839,0.5054,4292.9,4292.8,0.2982]
[1757433793139,0.45363664,4292.9,4292.8,0.6294]
[1757433793329,0.3031,4292.9,4292.8,0.6294]
[1757433794628,0.5054,4292.9,4292.8,0.5362]
[1757433794824,0.3031,4292.9,4292.8,0.6294]
[1757433795030,3.4458,4293.9,4292.9,0.0932]
[1757433795232,1.24705593,4293.4,4293.3,0.1491]
[1757433795439,1.24705593,4293.4,4293.3,0.238]
[1757433795634,0.3999,4292.8,4292.7,3.2078]
[1757433795941,0.703,4292.8,4292.7,3.744]
[1757433796340,0.5054,4292.8,4292.7,3.744]
[1757433799542,0.5054,4292.8,4292.7,3.8375]
[1757433799841,0.3031,4292.8,4292.7,3.8375]
[1757433800734,0.3013,4292.9,4292.8,0.3907]
[1757433801339,3.2078,4293.9,4292.9,0.3907]
[1757433801543,3.2078,4293.9,4293.4,0.3907]
[1757433801746,3.2078,4293.9,4293.4,0.6287]
[1757433802245,0.4185,4293.5,4293.4,0.6287]
[1757433802644,0.6204,4293.5,4293.4,0.2972]
[1757433802947,0.6204,4293.5,4293.4,0.5352]
[1757433802948,0.8332,4293.5,4293.4,0.5352]
[1757433804348,0.8332,4293.5,4293.4,0.2972]
[1757433804849,0.8332,4293.5,4293.4,0.5352]
[1757433805746,0.3013,4293.4,4293.2,3.2078]
[1757433806049,0.3013,4293.4,4292.0,34.00555]
[1757433806050,0.716,4293.4,4293.3,0.238]
[1757433806546,0.716,4293.4,4293.3,0.3866]
[1757433806941,0.716,4293.4,4293.3,0.238]
[1757433810352,0.716,4292.8,4292.7,3.3564]
[1757433810644,0.716,4292.8,4292.7,3.5944]
[1757433813350,0.716,4292.8,4292.7,3.743]
[1757433816450,0.5032,4292.8,4292.7,3.8365]
[1757433817854,0.3013,4292.8,4292.7,3.8365]
[1757433818063,0.1201,4293.0,4292.7,3.743]
[1757433818064,0.4214,4293.0,4292.7,3.743]
[1757433818254,0.4214,4293.0,4292.9,0.3907]
[1757433818457,0.4214,4293.0,4292.9,0.6287]
[1757433818756,0.6233,4293.0,4292.9,0.5352]
[1757433819751,0.4214,4293.0,4292.9,0.6287]
[1757433820458,0.3013,4293.0,4292.9,0.6287]
[1757433820857,0.1172,4293.5,4293.4,0.2972]
[1757433821058,0.1172,4293.5,4293.4,0.5352]
[1757433821059,0.3191,4293.5,4293.4,0.5352]
[1757433821454,0.6204,4293.5,4293.4,0.5352]
[1757433821668,0.6204,4293.5,4293.4,0.6287]
[1757433822062,0.6204,4293.5,4293.4,0.5352]
[1757433823560,0.8332,4293.5,4293.4,0.5352]
[1757433823860,0.8332,4293.5,4293.4,0.238]
[1757433824157,0.716,4293.4,4293.3,0.1486]
[1757433824462,0.716,4293.4,4293.3,0.3866]
[1757433824665,0.5032,4293.4,4293.3,0.5352]
[1757433825056,0.716,4293.4,4293.3,0.5352]
[1757433827862,0.716,4293.4,4293.3,0.238]
[1757433828464,0.716,4293.4,4293.3,0.3883]
[1757433830680,0.5032,4293.4,4293.3,0.5386]
[1757433831882,0.7067,4293.4,4293.3,0.5386]
[1757433832086,0.501,4293.4,4293.3,0.6325]
[1757433832879,0.3013,4293.4,4293.3,0.6325]
[1757433833472,0.501,4293.4,4293.3,0.5386]
[1757433834182,0.3013,4293.4,4293.3,0.6325]
[1757433836080,0.1234,4294.5,4294.1,0.306]
[1757433836384,0.4032,4294.3,4294.2,0.4367]
[1757433838282,0.7002,4294.3,4294.2,0.4367]
[1757433838477,0.7002,4294.3,4294.2,0.7427]
[1757433839077,0.7002,4294.3,4294.2,0.1987]
[1757433839281,0.7002,4294.3,4294.2,0.4367]
[1757433839483,0.7002,4294.3,4294.2,0.9433]
[1757433839681,0.4967,4294.3,4294.2,0.9433]
[1757433839884,0.7002,4294.3,4294.2,0.238]
[1757433840277,0.297,4294.2,4293.7,1.66862787]
[1757433840477,0.7002,4293.7,4293.6,3.4065]
[1757433840685,0.7002,4293.7,4293.6,3.6445]
[1757433840880,0.7002,4293.7,4293.6,3.9505]
[1757433841184,0.7002,4293.7,4293.6,4.1511]
[1757433841586,0.297,4293.7,4293.6,4.1511]
[1757433841988,0.7002,4293.7,4293.6,3.9131]
[1757433842188,0.7002,4293.7,4293.6,4.1511]
[1757433842685,0.7002,4293.7,4293.6,3.8451]
[1757433842900,0.7002,4293.7,4293.6,4.1511]
[1757433843289,0.7002,4293.7,4293.6,3.8451]
[1757433843887,0.7002,4293.7,4293.6,3.6445]
[1757433846286,0.7002,4293.7,4293.6,3.4458]
[1757433847292,0.7002,4293.7,4293.6,3.6445]
[1757433848690,0.7002,4293.7,4293.6,3.9505]
[1757433848890,0.7002,4293.7,4293.6,4.1511]
[1757433850495,0.7002,4293.7,4293.6,3.4458]
[1757433851091,0.7002,4293.7,4293.6,4.1511]
[1757433857293,0.7002,4293.7,4293.6,3.9131]
[1757433857500,0.7002,4293.7,4293.6,4.1511]
[1757433858197,0.3919,4293.2,4293.1,3.4066]
[1757433858395,0.7082,4293.2,4293.1,3.6446]
[1757433858593,0.7082,4293.2,4293.1,4.1561]
[1757433859897,0.7082,4293.2,4293.1,3.8516]
[1757433860098,0.7082,4293.2,4293.1,4.1561]
[1757433862403,3.2078,4293.9,4293.1,4.1561]
[1757433862596,1.39782929,4293.8,4293.7,0.1988]
[1757433865294,1.39782929,4293.8,4293.6,0.238]
[1757433865496,0.85973111,4293.7,4293.6,0.238]
[1757433867102,0.85973111,4293.7,4293.4,0.3045]
[1757433867299,0.8363,4293.5,4293.4,0.5033]
[1757433867501,0.94563111,4293.5,4293.4,0.7103]
[1757433871011,1.07373111,4293.5,4293.4,0.7103]
[1757433872208,0.94563111,4293.5,4293.4,0.7103]
[1757433872407,0.7082,4293.2,4293.1,4.1551]
[1757433872612,0.3163,4293.2,4293.1,4.1551]
[1757433874210,0.5113,4293.2,4293.1,4.1551]
[1757433876104,0.3163,4293.4,4293.1,3.8506]
[1757433876304,0.195,4293.4,4293.2,0.3045]
[1757433876613,0.195,4293.4,4293.3,0.9473]
[1757433877007,0.5113,4293.4,4293.3,0.9473]
[1757433878514,0.0859,4293.5,4293.3,0.9473]
[1757433878811,0.5972,4293.5,4293.4,0.7103]
[1757433879012,0.0859,4293.5,4293.4,0.7103]
[1757433880215,0.7941,4293.5,4293.4,0.4058]
[1757433880511,0.3163,4293.4,4293.1,3.5123]
[1757433880716,0.7082,4293.3,4293.2,0.4358]
[1757433881214,0.7082,4293.3,4293.2,0.9473]
[1757433881401,0.87091021,4293.3,4293.2,0.9473]
[1757433882009,0.87091021,4293.3,4293.2,0.6428]
[1757433882312,0.87091021,4293.3,4293.2,0.9473]
[1757433882712,0.87091021,4293.3,4293.1,3.2078]
[1757433883028,0.7082,4293.2,4293.1,3.4066]
[1757433883215,0.7082,4293.2,4293.1,3.9481]
[1757433883416,0.87093916,4293.2,4293.1,3.9481]
[1757433884716,0.87093916,4293.2,4293.1,4.1551]
[1757433885215,0.87095246,4293.2,4293.1,4.1551]
[1757433887111,0.87095246,4293.2,4293.1,3.9181]
[1757433887310,0.55465246,4293.2,4293.1,0.237]
[1757433887511,0.85885246,4293.2,4293.1,0.9427]
[1757433888113,0.85885246,4293.2,4293.1,0.7057]
[1757433888417,0.85885246,4293.2,4293.1,0.237]
[1757433890318,0.7187,4292.6,4292.5,0.502]
[1757433890514,0.7187,4292.6,4292.5,0.739]
[1757433890515,0.88151359,4292.6,4292.5,0.739]
[1757433891024,0.88151732,4292.6,4292.5,0.9427]
[1757433891827,0.843,4292.5,4292.4,3.641]
[1757433892118,1.00581732,4292.5,4292.4,3.641]
[1757433892416,0.7187,4292.1,4292.0,33.559]
[1757433892618,0.7187,4292.1,4292.0,33.796]
[1757433892825,0.7187,4292.1,4292.0,0.9427]
[1757433893017,0.3042,4292.4,4292.0,0.5195]
[1757433893223,0.68039396,4292.3,4292.2,0.7057]
[1757433893410,0.88139396,4292.3,4292.2,0.7057]
[1757433893946,0.7187,4292.3,4292.2,0.7057]
[1757433894109,0.3042,4292.9,4292.2,0.7057]
[1757433894318,0.71797531,4292.8,4292.7,0.3999]
[1757433894525,1.23567531,4292.8,4292.7,0.7057]
[1757433894821,1.23562313,4292.8,4292.7,0.7057]
[1757433895023,0.68026366,4292.8,4292.7,0.7057]
[1757433895421,0.88126366,4292.8,4292.7,0.7057]
[1757433895618,0.88126366,4292.8,4292.7,0.1962]
[1757433896019,1.43637529,4292.8,4292.7,0.1962]
[1757433896519,0.5388,4292.5,4292.4,0.4332]
[1757433896821,0.69585361,4292.5,4292.4,0.237]
[1757433897043,1.00005361,4292.5,4292.4,0.237]
[1757433898128,1.00005361,4292.5,4292.4,0.4332]
[1757433899018,1.00005361,4292.5,4292.4,0.237]
[1757433900220,1.00005361,4292.5,4292.0,0.3058]
[1757433900419,0.843,4292.0,4291.9,3.4448]
[1757433900620,0.843,4292.0,4291.9,3.9468]
[1757433900826,0.7187,4292.0,4291.9,4.1505]
[1757433901319,0.5177,4292.0,4291.9,4.1505]
[1757433902121,0.843,4292.0,4291.9,4.1505]
[1757433902314,0.4145,4291.6,4291.5,0.9427]
[1757433902516,0.5177,4291.9,4291.8,0.3999]
[1757433902716,0.7187,4291.9,4291.8,0.7057]
[1757433902923,0.7187,4291.9,4291.8,0.3999]
[1757433903120,0.7187,4291.9,4291.8,0.1962]
[1757433903324,0.3042,4291.8,4291.5,0.5428]
[1757433903529,0.7187,4291.8,4291.7,0.1962]
[1757433905625,0.3042,4291.7,4291.5,0.3058]
[1757433905818,0.843,4291.5,4291.4,0.1962]
[1757433907529,0.843,4291.5,4290.9,3.2078]
[1757433907530,0.5388,4291.0,4290.9,3.5136]
[1757433907833,0.843,4291.0,4290.9,0.1962]
[1757433908234,0.843,4291.0,4290.9,0.7057]
[1757433908728,0.7187,4291.0,4290.9,0.7057]
[1757433909032,0.8046,4291.0,4290.9,0.7057]
[1757433909529,0.9289,4291.0,4290.9,0.7057]
[1757433911737,0.8046,4291.0,4290.9,0.7057]
[1757433913629,0.9289,4291.0,4290.9,0.7057]
[1757433914227,0.9289,4291.0,4290.4,3.39689635]
[1757433914228,0.3042,4290.9,4290.4,3.5136]
[1757433914435,0.843,4290.5,4290.4,3.404]
[1757433914732,0.843,4290.5,4290.4,4.1505]
[1757433915429,0.843,4290.5,4290.4,3.9135]
[1757433915730,0.843,4290.5,4290.4,4.1505]
[1757433916628,0.7187,4290.5,4290.4,4.1505]
[1757433917236,0.7187,4290.5,4290.4,3.9135]
[1757433917426,0.7187,4290.5,4290.4,4.1505]
[1757433917929,0.842,4290.5,4290.4,4.44551468]
[1757433919130,0.842,4290.5,4290.4,3.50281468]
[1757433919324,0.842,4290.5,4290.4,0.29501468]
[1757433919727,0.842,4290.5,4290.0,0.2964]
[1757433919930,0.4097,4290.1,4290.0,0.4911]
[1757433920124,0.4097,4289.9,4289.8,0.237]
[1757433920330,0.7065,4289.9,4289.8,0.4317]
[1757433920932,0.4097,4289.9,4289.4,3.2078]
[1757433921131,0.7065,4289.6,4289.5,0.1947]
[1757433921533,0.7065,4289.6,4289.5,0.7004]
[1757433922948,0.7925,4289.6,4289.5,0.7004]
[1757433924632,0.7925,4289.6,4289.5,0.404]
[1757433925037,0.7925,4289.6,4289.5,0.7004]
[1757433928735,0.086,4289.6,4289.5,0.8268]
[1757433929439,0.5832,4289.6,4289.5,0.7004]
[1757433929838,0.2968,4290.7,4290.6,0.404]
[1757433930138,0.2968,4291.4,4290.6,0.641]
[1757433930448,0.7680431,4291.3,4291.2,0.7004]
[1757433930737,0.2968,4292.4,4291.9,0.2964]
[1757433930940,0.69671456,4292.3,4292.2,0.7004]
[1757433931931,0.90601456,4292.3,4292.2,0.404]
[1757433932937,0.1233,4292.0,4291.8,3.2078]
[1757433933143,0.7065,4291.9,4291.8,3.2078]
[1757433933850,0.7065,4291.9,4291.8,3.4025]
[1757433935043,0.7065,4291.9,4291.8,2.8842]
[1757433935044,4.9395,4291.9,4291.8,2.8842]
[1757433935246,0.7065,4291.3,4291.2,3.2078]
[1757433935748,0.7065,4291.3,4291.2,3.6989]
[1757433936249,0.7065,4291.3,4291.2,3.9082]
[1757433937162,0.2004,4291.6,4291.5,0.1264]
[1757433937347,0.76627683,4291.6,4291.5,0.5304]
[1757433937846,1.27237683,4291.6,4291.5,0.8268]
[1757433938854,1.27237683,4291.6,4291.5,1.15119444]
[1757433940354,3.4082,4291.9,4291.8,0.404]
[1757433940559,4.48019508,4291.9,4291.8,0.32439444]
[1757433941153,4.48019508,4291.9,4291.8,0.51909444]
[1757433941455,4.48019508,4291.9,4291.8,0.4911]
[1757433941852,4.48019508,4291.9,4291.8,0.81549516]
[1757433942754,3.9143,4291.9,4291.8,0.32439516]
[1757433944463,4.48041576,4291.9,4291.8,0.32439516]
[1757433945959,4.48041576,4291.9,4290.6,3.2078]
[1757433945960,0.1318,4291.2,4290.6,3.2078]
[1757433946164,0.4097,4291.2,4291.1,0.4911]
[1757433946455,0.5415,4291.1,4291.0,0.4228]
[1757433946660,0.1323,4291.0,4290.6,0.2915]
[1757433946847,0.5367,4290.7,4290.6,0.2915]
[1757433947858,0.4044,4290.7,4290.6,0.4953]
[1757433953753,0.5367,4290.7,4290.6,0.2915]
[1757433955270,0.5367,4290.7,4290.6,0.4953]
[1757433955463,0.4044,4290.7,4290.6,0.4953]
[1757433956157,0.5367,4290.7,4290.6,0.4953]
[1757433956562,0.4044,4290.7,4290.6,0.4953]
[1757433957870,0.4044,4290.7,4290.6,0.81668649]
[1757433958462,0.97127456,4290.7,4290.6,1.01518649]
[1757433958668,0.4044,4290.7,4290.6,1.01518649]
[1757433959367,0.97127298,4290.7,4290.6,1.01518649]
[1757433959575,0.97127298,4290.7,4290.6,0.81668649]
[1757433959864,0.97127298,4290.7,4290.6,0.4953]
[1757433962170,1.33103791,4290.7,4290.6,0.4953]
[1757433962370,1.20827298,4290.7,4290.6,0.4953]
[1757433962667,0.56687298,4290.7,4290.6,0.6938]
[1757433962873,0.237,4290.7,4290.6,0.6938]
[1757433963172,0.56687298,4290.7,4290.6,0.6938]
[1757433963369,0.89227443,4290.7,4290.6,0.6938]
[1757433963575,1.09407443,4290.7,4290.6,0.6938]